bitfinex/quotes_BTCUSD_20220207
["timestamp","ask_amount","ask_price","bid_price","bid_amount"]
[1644251774609,0.323825,44077.0,44075.0,0.38157592]
[1644251774808,0.323825,44077.0,44067.0,0.08987801]
[1644251775012,0.323825,44077.0,44076.0,0.08987801]
[1644251775312,0.323825,44077.0,44076.0,0.05]
[1644251775509,0.34362823,44078.0,44076.0,0.13987801]
[1644251775709,0.035531,44078.0,44076.0,0.13987801]
[1644251775912,0.021,44089.0,44078.0,0.85]
[1644251776212,0.022,44099.0,44089.0,0.53551722]
[1644251776213,0.0211,44099.0,44089.0,0.53551722]
[1644251776410,0.0211,44099.0,44098.0,0.13987801]
[1644251776911,0.19172742,44099.0,44083.0,0.08987801]
[1644251777211,0.19172742,44099.0,44083.0,0.05]
[1644251777212,0.57475682,44098.0,44083.0,0.05]
[1644251777511,0.19172742,44099.0,44071.0,0.3]
[1644251777512,0.2012943,44086.0,44071.0,0.3]
[1644251777715,0.76648424,44099.0,44081.0,0.08987801]
[1644251777716,0.05,44084.0,44081.0,0.08987801]
[1644251777909,0.22831184,44100.0,44083.0,0.1]
[1644251778111,0.22831184,44100.0,44094.0,0.08987801]
[1644251778369,0.22831184,44100.0,44078.0,0.0417]
[1644251778370,0.01866184,44098.0,44072.0,0.20332801]
[1644251778570,0.05,44097.0,44073.0,0.3]
[1644251778771,0.05,44097.0,44081.0,0.08987801]
[1644251778772,0.0917,44097.0,44081.0,0.08987801]
[1644251779070,0.0917,44097.0,44083.0,0.08987801]
[1644251779071,0.35827124,44084.0,44083.0,0.08987801]
[1644251779368,0.06866184,44098.0,44083.0,0.08987801]
[1644251779569,0.07088444,44098.0,44085.0,0.08987801]
[1644251779770,0.02088444,44098.0,44097.0,0.1]
[1644251779972,0.00055564,44099.0,44097.0,0.64104804]
[1644251780169,0.00055564,44099.0,44098.0,0.41370301]
[1644251780372,0.34968117,44103.0,44097.0,0.01866184]
[1644251780772,0.34968117,44103.0,44100.0,0.01948416]
[1644251780970,0.323583,44102.0,44100.0,0.01948416]
[1644251781575,0.001,44104.0,44101.0,0.18987801]
[1644251781770,0.22713232,44116.0,44102.0,0.35]
[1644251781771,0.021,44109.0,44102.0,0.35]
[1644251782009,0.021,44109.0,44108.0,0.08987801]
[1644251782311,0.001,44115.0,44108.0,0.1]
[1644251782509,0.001,44115.0,44102.0,0.45]
[1644251782510,0.31375459,44115.0,44110.0,0.08987801]
[1644251782709,0.323583,44114.0,44103.0,0.08987801]
[1644251782911,0.31375459,44115.0,44103.0,0.08987801]
[1644251783108,0.31375459,44115.0,44104.0,0.05]
[1644251783509,0.31375459,44115.0,44107.0,0.21336346]
[1644251783708,0.31375459,44115.0,44104.0,0.05]
[1644251783909,0.07414586,44112.0,44104.0,0.05]
[1644251784112,0.31375459,44115.0,44101.0,0.02057669]
[1644251784312,0.05,44109.0,44101.0,0.02057669]
[1644251784712,0.2326848,44106.0,44101.0,0.01557669]
[1644251784915,0.365283,44105.0,44101.0,0.01557669]
[1644251785311,0.06991641,44104.0,44101.0,0.01557669]
[1644251785514,0.04081,44103.0,44101.0,0.01557669]
[1644251785766,0.05,44109.0,44101.0,0.01557669]
[1644251785767,0.05,44109.0,44102.0,0.31359995]
[1644251785967,0.22899466,44115.0,44108.0,0.13987801]
[1644251785968,0.323583,44113.0,44108.0,0.13987801]
[1644251786168,0.001,44115.0,44108.0,0.08987801]
[1644251786367,0.05,44113.0,44101.0,0.08987801]
[1644251786567,0.05,44113.0,44098.0,0.01863539]
[1644251786568,0.3821891,44111.0,44098.0,0.01863539]
[1644251786766,0.00072679,44115.0,44105.0,0.08987801]
[1644251786968,0.00072679,44115.0,44098.0,0.01863539]
[1644251786969,0.04081,44114.0,44099.0,0.08987801]
[1644251787269,0.20384593,44104.0,44098.0,0.01863539]
[1644251787468,0.20692649,44110.0,44098.0,0.01863539]
[1644251787469,0.07065609,44102.0,44098.0,0.01863539]
[1644251787767,0.34961251,44103.0,44098.0,0.01863539]
[1644251788368,0.34961251,44103.0,44094.0,0.01523902]
[1644251788369,0.85,44101.0,44094.0,0.01523902]
[1644251788569,0.34081,44100.0,44075.0,0.05]
[1644251788867,0.34081,44100.0,44074.0,0.08987801]
[1644251788868,0.37661502,44082.0,44074.0,0.08987801]
[1644251789070,0.365278,44081.0,44074.0,0.08987801]
[1644251789269,0.359678,44081.0,44074.0,0.08987801]
[1644251789507,0.359678,44081.0,44077.0,0.08987801]
[1644251789508,0.0417,44081.0,44077.0,0.08987801]
[1644251789807,0.12216184,44081.0,44072.0,0.08987801]
[1644251790008,0.12216184,44081.0,44071.0,0.01849884]
[1644251790009,0.05,44077.0,44071.0,0.01849884]
[1644251790210,0.0417,44076.0,44071.0,0.01849884]
[1644251790408,0.0417,44076.0,44073.0,0.08987801]
[1644251790607,0.0417,44076.0,44075.0,0.34657642]
[1644251790811,0.0417,44079.0,44076.0,0.85]
[1644251791008,0.0417,44093.0,44078.0,0.18987801]
[1644251791207,0.0417,44093.0,44076.0,0.85]
[1644251791208,0.0417,44093.0,44084.0,0.08987801]
[1644251791410,0.26116921,44091.0,44078.0,0.08987801]
[1644251791611,0.05,44089.0,44073.0,0.05]
[1644251791814,0.32740822,44077.0,44070.0,0.3]
[1644251792109,0.05,44087.0,44071.0,0.10837685]
[1644251792308,0.317966,44086.0,44077.0,0.02032952]
[1644251792509,0.2425114,44078.0,44077.0,0.02032952]
[1644251792709,0.26564353,44084.0,44077.0,0.01532952]
[1644251792910,0.30748969,44082.0,44077.0,0.01532952]
[1644251793112,0.06578906,44081.0,44079.0,0.00074859]
[1644251793564,0.0001,44080.0,44079.0,0.00074859]
[1644251793964,0.0001,44080.0,44078.0,0.13987801]
[1644251794163,0.0001,44080.0,44078.0,0.05]
[1644251794364,0.0001,44080.0,44079.0,0.05]
[1644251794565,0.0001,44080.0,44079.0,0.1]
[1644251795065,0.003,44126.0,44079.0,0.773697]
[1644251795066,0.05,44105.0,44079.0,0.773697]
[1644251795267,0.0001,44100.0,44099.0,0.13487801]
[1644251795464,0.0001,44100.0,44099.0,0.323697]
[1644251795664,0.0001,44100.0,44085.0,0.08987801]
[1644251795864,0.07619136,44087.0,44085.0,0.49366415]
[1644251796068,0.07619136,44087.0,44085.0,0.08987801]
[1644251796267,0.07619136,44087.0,44086.0,0.045]
[1644251796464,0.07619136,44087.0,44086.0,0.13067]
[1644251797024,0.07619136,44087.0,44086.0,0.04337]
[1644251797315,0.07619136,44087.0,44077.0,0.00074862]
[1644251797316,0.16789136,44087.0,44077.0,0.00074862]
[1644251797513,0.16789136,44087.0,44081.0,0.08487801]
[1644251797514,0.38161667,44086.0,44081.0,0.08487801]
[1644251797914,0.317966,44085.0,44084.0,0.00074852]
[1644251799415,0.59794207,44085.0,44084.0,0.00074852]
[1644251799615,0.83854128,44085.0,44084.0,0.00074852]
[1644251800014,0.27997607,44085.0,44084.0,0.00074852]
[1644251800766,0.37167607,44085.0,44084.0,0.00074852]
[1644251800966,0.68964207,44085.0,44084.0,0.00074852]
[1644251801366,0.63964207,44085.0,44082.0,0.08358164]
[1644251801569,0.316966,44084.0,44081.0,0.00066527]
[1644251801767,0.32167607,44085.0,44081.0,0.00066527]
[1644251801970,0.07619136,44087.0,44084.0,0.095]
[1644251802169,0.07619136,44087.0,44083.0,0.08358164]
[1644251802568,0.07619136,44087.0,44081.0,0.00066527]
[1644251802569,0.07619136,44087.0,44082.0,0.07906705]
[1644251802769,0.07619136,44087.0,44082.0,0.19820108]
[1644251802971,0.62014805,44085.0,44083.0,0.05]
[1644251803169,0.316969,44084.0,44083.0,0.05]
[1644251803368,0.316969,44084.0,44082.0,0.05048541]
[1644251803570,0.23298939,44085.0,44082.0,0.00048541]
[1644251803773,0.07619136,44087.0,44082.0,0.00048541]
[1644251804170,0.07619136,44087.0,44078.0,0.08893719]
[1644251804372,0.07619136,44087.0,44081.0,0.045]
[1644251804612,0.07619136,44087.0,44083.0,0.06796705]
[1644251805016,0.68102998,44086.0,44081.0,0.05]
[1644251805212,0.68102998,44086.0,44078.0,0.0186053]
[1644251805412,0.31463302,44085.0,44078.0,0.0186053]
[1644251805613,0.34604598,44079.0,44078.0,0.0186053]
[1644251805816,0.42685596,44079.0,44078.0,0.0186053]
[1644251806418,0.74423373,44079.0,44076.0,0.06796705]
[1644251806617,0.0417,44078.0,44076.0,0.15509705]
[1644251806815,0.316969,44077.0,44076.0,0.15509705]
[1644251807015,0.316969,44077.0,44076.0,0.02539705]
[1644251807016,0.358669,44077.0,44076.0,0.02539705]
[1644251807415,0.0417,44077.0,44076.0,0.02539705]
[1644251807815,0.37117912,44072.0,44071.0,0.04079326]
[1644251808014,0.36818024,44074.0,44071.0,0.04079326]
[1644251808867,0.316969,44073.0,44071.0,0.04079326]
[1644251809268,0.55884948,44074.0,44071.0,0.04079326]
[1644251810170,0.55884948,44074.0,44050.0,0.37023721]
[1644251810171,0.85,44070.0,44062.0,6.07e-06]
[1644251810373,0.85,44070.0,44044.0,0.5]
[1644251810374,0.62475682,44063.0,44045.0,0.22704]
[1644251810571,0.05,44046.0,44043.0,0.1308]
[1644251810771,0.05,44046.0,44045.0,0.1308]
[1644251810970,0.05,44050.0,44028.0,0.08162567]
[1644251810971,0.05,44049.0,44031.0,0.62095129]
[1644251811171,0.05,44050.0,44034.0,0.30856285]
[1644251811172,0.0417,44045.0,44034.0,0.30856285]
[1644251811373,0.0417,44048.0,44034.0,0.30856285]
[1644251811576,0.0417,44047.0,44034.0,0.30856285]
[1644251811871,0.07719331,44044.0,44034.0,0.30856285]
[1644251812115,0.05,44048.0,44034.0,0.54206075]
[1644251812317,0.30142338,44045.0,44034.0,0.54206075]
[1644251812616,0.0417,44044.0,44034.0,0.54206075]
[1644251813014,0.08823,44042.0,44034.0,0.30856285]
[1644251813215,0.0417,44044.0,44034.0,0.30856285]
[1644251813416,0.05,44043.0,44034.0,0.30856285]
[1644251813616,0.04157006,44043.0,44034.0,0.30856285]
[1644251814015,0.04157006,44043.0,44037.0,0.2318441]
[1644251814221,0.04157006,44043.0,44037.0,0.05]
[1644251814416,0.04157006,44043.0,44038.0,0.323674]
[1644251814618,0.04157006,44043.0,44042.0,0.26287742]
[1644251814818,0.0417,44053.0,44042.0,0.05]
[1644251815017,0.3,44052.0,44035.0,0.05]
[1644251815221,0.05,44047.0,44035.0,0.13721]
[1644251815517,0.07066499,44046.0,44035.0,0.13721]
[1644251815966,0.07066499,44046.0,44033.0,0.24155684]
[1644251816165,0.316969,44045.0,44038.0,0.00074742]
[1644251816566,0.27921973,44042.0,44038.0,0.00074742]
[1644251816968,0.27921973,44042.0,44032.0,0.24871275]
[1644251817167,0.27921973,44042.0,44031.0,0.24711]
[1644251817370,0.05,44041.0,44038.0,0.00074742]
[1644251817568,0.05,44040.0,44038.0,0.00074742]
[1644251817970,0.316969,44039.0,44038.0,0.00074742]
[1644251818171,0.82978498,44039.0,44038.0,0.00074742]
[1644251818370,0.3559407,44034.0,44031.0,0.24711]
[1644251818570,0.07284958,44032.0,44031.0,0.24711]
[1644251818769,0.045,44037.0,44031.0,0.24711]
[1644251819613,0.01884459,44042.0,44031.0,0.24711]
[1644251819812,0.1005898,44042.0,44031.0,0.24711]
[1644251820413,0.08174521,44042.0,44031.0,0.24711]
[1644251820611,0.08174521,44042.0,44031.0,0.29711]
[1644251820812,0.31246263,44041.0,44034.0,0.00073311]
[1644251821015,0.31246263,44041.0,44034.0,0.00061611]
[1644251821213,0.07198936,44045.0,44034.0,0.00061611]
[1644251821413,0.07198936,44045.0,44034.0,0.21865611]
[1644251821916,0.07198936,44045.0,44035.0,0.05]
[1644251822111,0.32992714,44043.0,44037.0,0.08721]
[1644251822312,0.07933771,44039.0,44037.0,0.08721]
[1644251822514,0.07933771,44039.0,44038.0,0.05]
[1644251822713,0.05,44040.0,44038.0,0.05]
[1644251823114,0.316969,44040.0,44038.0,0.05]
[1644251823367,0.31669593,44040.0,44038.0,0.05]
[1644251823566,0.32992714,44043.0,44038.0,0.05]
[1644251823765,0.32992714,44043.0,44034.0,0.13083]
[1644251823766,0.316658,44042.0,44034.0,0.13083]
[1644251824168,0.26411359,44039.0,44034.0,0.13083]
[1644251824767,0.37957487,44036.0,44034.0,0.13083]
[1644251824968,0.0683162,44040.0,44034.0,0.12583]
[1644251825369,0.02063342,44043.0,44034.0,0.12583]
[1644251825768,0.02063342,44043.0,44035.0,0.00074508]
[1644251825971,0.37041918,44041.0,44035.0,0.00074508]
[1644251826369,0.06948384,44040.0,44035.0,0.00074508]
[1644251826772,0.05,44036.0,44033.0,0.00100325]
[1644251827031,0.366658,44036.0,44035.0,0.00074508]
[1644251827223,0.55947537,44036.0,44035.0,0.00074508]
[1644251827419,0.55947537,44036.0,44031.0,0.01674833]
[1644251827619,0.05,44032.0,44031.0,0.01674833]
[1644251827821,0.366658,44032.0,44031.0,0.01674833]
[1644251828020,0.85,44031.0,44021.0,0.02]
[1644251828222,0.85,44031.0,44021.0,0.10724]
[1644251828223,0.05,44025.0,44021.0,0.10724]
[1644251828422,0.85,44023.0,44017.0,0.42]
[1644251828622,0.316658,44022.0,44017.0,0.42]
[1644251829021,0.1,44030.0,44017.0,0.42]
[1644251829022,0.316658,44021.0,44017.0,0.42]
[1644251829223,0.35182211,44026.0,44017.0,0.415]
[1644251829224,0.366658,44018.0,44017.0,0.415]
[1644251829426,0.466658,44018.0,44017.0,0.415]
[1644251829823,0.466658,44018.0,44011.0,0.02]
[1644251830024,0.05,44012.0,44011.0,0.24721]
[1644251830223,0.05,44012.0,44001.0,0.02]
[1644251830224,0.85,44011.0,44001.0,0.02]
[1644251830424,0.316658,44010.0,44001.0,0.02]
[1644251830623,0.316658,44010.0,44009.0,0.00074542]
[1644251830869,0.316658,44020.0,44009.0,0.00074542]
[1644251831168,0.05,44018.0,44009.0,0.00074542]
[1644251831370,0.316658,44017.0,44009.0,0.00074542]
[1644251831567,0.316658,44017.0,44005.0,0.25563634]
[1644251831568,0.36325391,44015.0,44005.0,0.25563634]
[1644251831767,0.29844714,44015.0,44005.0,0.30563634]
[1644251831969,0.29844714,44015.0,44011.0,0.00072024]
[1644251832177,0.85072,44011.0,44001.0,0.02]
[1644251832368,0.85072,44011.0,44002.0,0.14826218]
[1644251832369,0.05,44008.0,44002.0,0.14826218]
[1644251832568,0.05,44008.0,44002.0,0.14806218]
[1644251832569,0.366658,44007.0,44002.0,0.14806218]
[1644251832792,0.07787557,44006.0,44002.0,0.14806218]
[1644251832968,0.19723658,44003.0,44002.0,0.14806218]
[1644251833169,0.316658,44003.0,44002.0,0.14806218]
[1644251833369,0.31624134,44003.0,44002.0,0.14116556]
[1644251833570,0.31624134,44003.0,43991.0,0.1073]
[1644251833571,0.84800078,44002.0,43991.0,0.1073]
[1644251833769,0.84800078,44002.0,43992.0,0.22731]
[1644251833770,0.316204,44001.0,43992.0,0.22731]
[1644251834172,1.05025861,44002.0,43992.0,0.22731]
[1644251834524,0.27964853,43995.0,43992.0,0.22731]
[1644251834723,0.8680363,44002.0,43992.0,0.22731]
[1644251834921,0.8680363,44002.0,43996.0,0.25649714]
[1644251835119,0.8680363,44002.0,43992.0,0.22731]
[1644251835520,0.8680363,44002.0,43997.0,0.00074585]
[1644251835721,0.316204,44001.0,43997.0,0.00074585]
[1644251835921,0.30142664,44000.0,43997.0,0.00074585]
[1644251836321,0.316204,43999.0,43997.0,0.00074585]
[1644251836519,0.316204,43999.0,43993.0,0.05]
[1644251836720,0.30142664,44000.0,43996.0,0.00074586]
[1644251836921,0.05,43997.0,43996.0,0.00074586]
[1644251837121,0.56468416,43997.0,43996.0,0.00074586]
[1644251837324,0.66468416,43997.0,43996.0,0.00074586]
[1644251837520,0.73046468,43997.0,43992.0,0.20339768]
[1644251837821,0.73046468,43997.0,43989.0,0.0003584]
[1644251837822,0.85,43992.0,43989.0,0.0003584]
[1644251838024,0.69600695,43992.0,43989.0,0.0007168]
[1644251838277,0.69600695,43992.0,43982.0,0.00117804]
[1644251838278,0.85,43991.0,43984.0,0.00253552]
[1644251838478,0.83,43991.0,43984.0,0.00253552]
[1644251838677,0.83,43991.0,43982.0,0.00117804]
[1644251838678,0.07324691,43984.0,43982.0,0.00117804]
[1644251838882,0.35134429,43983.0,43982.0,0.00117804]
[1644251839279,0.07324691,43984.0,43982.0,0.00117804]
[1644251839478,0.610655,44007.0,43982.0,0.00117804]
[1644251839679,0.056881,43998.0,43983.0,0.05]
[1644251839882,0.3,43996.0,43982.0,0.00117804]
[1644251840079,0.22067318,43990.0,43982.0,0.00117804]
[1644251840278,0.22067318,43990.0,43986.0,0.00052295]
[1644251840478,0.26495809,43989.0,43986.0,0.00052295]
[1644251840681,0.056893,43988.0,43986.0,0.00052295]
[1644251840879,0.67664772,43987.0,43986.0,0.00052295]
[1644251841279,0.85406766,43987.0,43982.0,0.00117804]
[1644251841482,0.85406766,43987.0,43984.0,0.00069756]
[1644251841483,0.54308211,43987.0,43984.0,0.00069756]
[1644251841679,0.36538886,43987.0,43984.0,0.00069756]
[1644251842116,0.00058373,43990.0,43986.0,0.05]
[1644251842317,0.00058373,43990.0,43989.0,0.05]
[1644251842516,0.26451722,43999.0,43986.0,0.05]
[1644251842714,0.23613722,43995.0,43988.0,0.05]
[1644251842913,0.00058375,43990.0,43988.0,0.05]
[1644251843312,0.00058375,43990.0,43986.0,0.00069754]
[1644251843718,0.23613722,43995.0,43985.0,0.21986559]
[1644251843913,0.45607329,43998.0,43985.0,0.21986559]
[1644251844116,0.00058375,43990.0,43986.0,0.00069924]
[1644251844614,0.27945443,43988.0,43986.0,0.00069924]
[1644251845017,2.6019611,43995.0,43984.0,0.00088674]
[1644251845216,0.20866529,43994.0,43985.0,0.00069925]
[1644251845414,0.00058374,43990.0,43985.0,0.00069925]
[1644251845616,0.00058374,43990.0,43989.0,0.07508355]
[1644251845862,0.00058374,43990.0,43989.0,0.05]
[1644251846061,0.00058374,43990.0,43988.0,0.05]
[1644251846262,0.35774537,43995.0,43987.0,0.30628889]
[1644251846462,0.00058375,43992.0,43988.0,0.05]
[1644251846665,0.00058375,43992.0,43990.0,0.000228]
[1644251846864,0.00058375,43992.0,43991.0,0.05]
[1644251847463,0.02056726,43994.0,43991.0,0.05]
[1644251847668,0.01615101,43994.0,43992.0,0.18926863]
[1644251847866,0.01576646,43994.0,43992.0,0.18926863]
[1644251848263,0.01576646,43994.0,43993.0,0.05]
[1644251848663,0.01855157,43998.0,43990.0,0.000228]
[1644251848865,0.2233509,43995.0,43990.0,0.000228]
[1644251849533,0.2920802,43994.0,43990.0,0.000228]
[1644251849722,0.2233509,43995.0,43990.0,0.000228]
[1644251849920,0.29295723,43994.0,43990.0,0.000228]
[1644251850325,0.29295723,43994.0,43981.0,0.01845129]
[1644251850326,0.85,43993.0,43981.0,0.01845129]
[1644251850722,0.31842167,43989.0,43981.0,0.01845129]
[1644251850919,0.41842167,43989.0,43981.0,0.01845129]
[1644251851322,0.20457787,43987.0,43981.0,0.01845129]
[1644251851521,0.20457787,43987.0,43981.0,0.01672029]
[1644251851720,0.20457787,43987.0,43981.0,0.06672029]
[1644251851921,0.20457787,43987.0,43981.0,0.01672029]
[1644251852122,0.41842167,43989.0,43984.0,0.05]
[1644251852422,0.0180078,43987.0,43981.0,0.01672029]
[1644251853022,0.2742292,43982.0,43981.0,0.01672029]
[1644251853275,0.28972183,43986.0,43981.0,0.01672029]
[1644251853476,0.07014864,43983.0,43981.0,0.01672029]
[1644251853876,0.2965637,43982.0,43981.0,0.0174637]
[1644251854078,0.056895,43984.0,43981.0,0.0174637]
[1644251854278,0.106895,43984.0,43981.0,0.0174637]
[1644251854481,0.26716349,43983.0,43981.0,0.0174637]
[1644251854676,0.31716349,43983.0,43981.0,0.0174637]
[1644251854878,0.85,43982.0,43981.0,0.00110376]
[1644251855076,0.85,43982.0,43971.0,0.02]
[1644251855077,0.26276901,43972.0,43971.0,0.02]
[1644251855278,0.26276901,43972.0,43971.0,0.015]
[1644251855486,0.49675472,43972.0,43971.0,0.015]
[1644251855780,0.85,43971.0,43964.0,0.42]
[1644251855979,0.85,43971.0,43951.0,0.02]
[1644251855980,0.0382,43970.0,43951.0,0.02]
[1644251856180,0.06492496,43962.0,43953.0,0.05]
[1644251856378,0.06492496,43962.0,43951.0,0.01613144]
[1644251856379,0.906928,43961.0,43951.0,0.01613144]
[1644251856580,0.3,43960.0,43951.0,0.01613144]
[1644251856778,0.05,43958.0,43951.0,0.01613144]
[1644251857211,0.34069003,43952.0,43951.0,0.01613144]
[1644251857611,0.44069003,43952.0,43951.0,0.01613144]
[1644251858017,0.44069003,43952.0,43943.0,0.05082402]
[1644251858018,0.23468995,43946.0,43943.0,0.05082402]
[1644251858215,0.85,43951.0,43943.0,0.00082402]
[1644251858416,0.15607329,43950.0,43943.0,0.00082402]
[1644251858613,1.0,43951.0,43945.0,0.05]
[1644251858614,1.10607329,43951.0,43945.0,0.05]
[1644251858815,1.10607329,43951.0,43945.0,0.05073748]
[1644251858816,0.15579967,43950.0,43945.0,0.05073748]
[1644251859017,0.15579967,43950.0,43948.0,0.05]
[1644251859216,0.15579967,43950.0,43945.0,0.00073748]
[1644251859616,0.1,43951.0,43945.0,0.00073748]
[1644251859818,0.1,43951.0,43948.0,0.19928848]
[1644251860018,0.01975297,43955.0,43950.0,0.05]
[1644251860221,1.05807275,43961.0,43954.0,0.24909371]
[1644251860423,0.20807275,43961.0,43958.0,0.05]
[1644251860623,0.0225,43968.0,43958.0,0.05]
[1644251860866,0.6213,43975.0,43964.0,0.05]
[1644251861069,0.36685837,43969.0,43953.0,0.05]
[1644251861373,0.36685837,43969.0,43961.0,0.00073727]
[1644251861374,0.35,43968.0,43961.0,0.00073727]
[1644251861569,0.056922,43965.0,43961.0,0.00073727]
[1644251861767,0.0419,43964.0,43961.0,0.00073727]
[1644251861968,3.02168564,43962.0,43961.0,0.00073727]
[1644251862168,3.11358564,43962.0,43961.0,0.00073727]
[1644251862368,0.85,43960.0,43945.0,0.18919137]
[1644251862568,0.0419,43959.0,43952.0,0.02095252]
[1644251862768,0.0419,43959.0,43954.0,0.00284438]
[1644251862971,0.05,43956.0,43954.0,0.00284438]
[1644251863173,0.08071331,43955.0,43954.0,0.00284438]
[1644251863369,0.12261331,43955.0,43954.0,0.00284438]
[1644251863570,0.0419,43955.0,43952.0,0.02095252]
[1644251863770,0.85,43954.0,43952.0,0.00055279]
[1644251863971,0.57887982,43953.0,43952.0,0.00055279]
[1644251864171,0.59983234,43953.0,43952.0,0.00055279]
[1644251864371,0.69983234,43953.0,43952.0,0.00055279]
[1644251864816,0.47700127,43953.0,43936.0,0.3159631]
[1644251865017,0.47700127,43953.0,43950.0,0.00055281]
[1644251865819,0.12151258,43951.0,43950.0,0.00055281]
[1644251866016,0.12151258,43951.0,43940.0,0.24363792]
[1644251866017,0.07151258,43951.0,43940.0,0.24363792]
[1644251866219,0.07151258,43951.0,43949.0,0.00072805]
[1644251866620,0.05,43950.0,43949.0,0.00072805]
[1644251867118,0.0919,43950.0,43936.0,0.00086072]
[1644251867317,0.356939,43949.0,43936.0,0.00086072]
[1644251867518,0.22030347,43943.0,43936.0,0.00086072]
[1644251867724,0.08200676,43938.0,43936.0,0.00086072]
[1644251868120,1.7068545,43941.0,43936.0,0.00086072]
[1644251868392,0.1,43941.0,43936.0,0.00086072]
[1644251868589,0.1,43941.0,43937.0,0.08739]
[1644251868790,0.1,43941.0,43936.0,0.00086072]
[1644251868791,0.35438086,43939.0,43936.0,0.00086072]
[1644251868989,0.0419,43938.0,43936.0,0.00086072]
[1644251869390,0.3,43937.0,43936.0,0.00086072]
[1644251869590,0.0419,43937.0,43936.0,0.00086072]
[1644251870191,0.8199,43939.0,43936.0,0.00086072]
[1644251870394,0.7199,43939.0,43936.0,0.00086072]
[1644251871091,0.7199,43939.0,43938.0,0.05]
[1644251871495,0.7199,43939.0,43938.0,0.28730693]
[1644251871689,0.7199,43939.0,43938.0,0.32730693]
[1644251871891,0.7199,43939.0,43938.0,0.27730693]
[1644251872121,0.7199,43939.0,43938.0,0.35617679]
[1644251872321,0.7199,43939.0,43938.0,0.40617679]
[1644251872523,0.7199,43939.0,43938.0,0.71307616]
[1644251872720,0.7199,43939.0,43938.0,0.40617679]
[1644251873122,0.2088635,43956.0,43940.0,0.75]
[1644251873324,0.20831068,43956.0,43955.0,0.28132061]
[1644251873525,0.44879799,43956.0,43955.0,0.28132061]
[1644251873724,0.05,43971.0,43956.0,0.7]
[1644251873922,0.05,43971.0,43957.0,0.324199]
[1644251874122,0.05,43971.0,43955.0,0.18578489]
[1644251874123,0.2410242,43970.0,43955.0,0.18578489]
[1644251874322,0.2410242,43970.0,43957.0,0.113803]
[1644251874323,0.0001,43968.0,43957.0,0.113803]
[1644251874522,0.2410242,43970.0,43957.0,0.05]
[1644251874722,0.2410242,43970.0,43956.0,0.0680682]
[1644251874723,0.08004146,43968.0,43960.0,0.0499]
[1644251874922,0.08004146,43968.0,43956.0,0.0181682]
[1644251874923,0.08004146,43968.0,43956.0,0.0680682]
[1644251875128,2.29288559,43966.0,43956.0,0.0680682]
[1644251875323,2.29288559,43966.0,43956.0,0.0181682]
[1644251875324,0.59863083,43961.0,43956.0,0.0181682]
[1644251875523,0.0001,43958.0,43956.0,0.0181682]
[1644251875764,0.59,43986.0,43956.0,0.0181682]
[1644251875765,0.056932,43961.0,43956.0,0.0181682]
[1644251875968,0.056932,43961.0,43942.0,0.163846]
[1644251875969,0.04192988,43955.0,43952.0,0.00056289]
[1644251876664,0.0419,43954.0,43952.0,0.00056289]
[1644251876864,0.0419,43954.0,43949.0,0.31259414]
[1644251877068,0.14192988,43955.0,43949.0,0.31259414]
[1644251877069,0.19810146,43955.0,43953.0,0.05]
[1644251877368,0.24785012,43977.0,43953.0,0.05]
[1644251877369,0.00059162,43958.0,43954.0,1.174199]
[1644251877566,0.00031777,43958.0,43957.0,0.05]
[1644251877768,0.00031777,43958.0,43957.0,0.65289587]
[1644251877967,0.00031777,43958.0,43957.0,0.72393983]
[1644251878167,0.040827,43979.0,43961.0,0.170693]
[1644251878366,0.040827,43979.0,43957.0,0.77393983]
[1644251878367,0.1779048,43966.0,43958.0,0.3]
[1644251878567,0.1779048,43966.0,43961.0,0.05]
[1644251878769,0.1779048,43966.0,43962.0,0.05]
[1644251879066,0.1779048,43966.0,43957.0,0.39974083]
[1644251879266,0.05,43976.0,43964.0,0.21509525]
[1644251879530,0.05,43974.0,43964.0,0.05]
[1644251879724,0.05,43974.0,43957.0,0.056906]
[1644251879927,0.63649442,43977.0,43950.0,0.3]
[1644251879928,0.05,43958.0,43950.0,0.3]
[1644251880124,0.0419,43973.0,43946.0,0.3]
[1644251880125,0.05,43961.0,43946.0,0.3]
[1644251880324,0.05,43961.0,43936.0,0.05086072]
[1644251880325,0.05,43961.0,43953.0,0.26098747]
[1644251880624,0.05,43961.0,43936.0,0.05086072]
[1644251880625,0.05,43961.0,43949.0,0.19315786]
[1644251880825,0.0006,43963.0,43956.0,0.0710149]
[1644251881227,0.05,43957.0,43951.0,0.00056311]
[1644251881452,0.106924,43960.0,43951.0,0.00056311]
[1644251881453,0.05,43952.0,43951.0,0.00056311]
[1644251881626,0.05,43952.0,43948.0,0.01916707]
[1644251881627,0.85,43951.0,43948.0,0.01916707]
[1644251881827,0.05,43949.0,43948.0,0.01916707]
[1644251882027,0.0919,43949.0,43948.0,0.01916707]
[1644251882227,0.0919,43949.0,43936.0,0.00086072]
[1644251882228,0.29838374,43947.0,43944.0,0.00296221]
[1644251882428,0.0419,43946.0,43944.0,0.00296221]
[1644251882628,0.05,43945.0,43944.0,0.00296221]
[1644251882827,0.0419,43945.0,43944.0,0.00296221]
[1644251883027,0.0419,43945.0,43936.0,0.00086072]
[1644251883263,0.30574976,43939.0,43936.0,0.00086072]
[1644251883464,0.05,43937.0,43936.0,0.00086072]
[1644251883664,0.40279782,43937.0,43936.0,0.00086072]
[1644251883866,0.1919,43937.0,43936.0,0.00086072]
[1644251885066,0.0919,43937.0,43936.0,0.00086072]
[1644251885270,0.3919,43937.0,43936.0,0.00086072]
[1644251885469,0.3919,43937.0,43936.0,7.2e-07]
[1644251885673,0.1919,43937.0,43936.0,7.2e-07]
[1644251885868,0.056971,43933.0,43928.0,0.00296185]
[1644251886166,0.056971,43933.0,43928.0,0.00186185]
[1644251886167,0.05,43929.0,43928.0,0.00186185]
[1644251886367,0.85,43928.0,43921.0,0.01713727]
[1644251886670,0.26214652,43927.0,43921.0,0.01241272]
[1644251886867,0.05,43922.0,43921.0,0.01241272]
[1644251887130,0.0919,43922.0,43921.0,0.01241272]
[1644251887331,0.0419,43922.0,43921.0,0.01241272]